fUSD/lending_fUSD_20260702
["ID","MTS","AMOUNT","RATE_DAILY","PERIOD"]
[426857189,1782961839000,-4101.07,0.00030126,2]
[426857197,1782961839000,-649.26184439,0.0003013,2]
[426857207,1782961839000,-1926.94300417,0.0003013,2]
[426857209,1782961839000,-30156.79940146,0.0003013,2]
[426857201,1782961839000,-482.4145305,0.0003013,2]
[426857199,1782961839000,-206.46996096,0.0003013,2]
[426857203,1782961839000,-171.92442809,0.0003013,20]
[426857205,1782961839000,-303.86090266,0.0003013,2]
[426857193,1782961839000,-4101.07,0.00030126,2]
[426857213,1782961839000,-1000.0,0.0003013,2]
[426857211,1782961839000,-1099.42825805,0.0003013,2]
[426857235,1782961839000,-500.0,0.00030136,2]
[426857230,1782961839000,-500.0,0.00030136,2]
[426857234,1782961839000,-500.0,0.00030136,2]
[426857232,1782961839000,-500.0,0.00030136,2]
[426857215,1782961839000,-170.0,0.00030131,30]
[426857227,1782961839000,-500.0,0.00030136,2]
[426857219,1782961839000,-500.0,0.00030136,2]
[426857223,1782961839000,-500.0,0.00030136,2]
[426857221,1782961839000,-500.0,0.00030136,2]
[426857225,1782961839000,-500.0,0.00030136,2]
[426857217,1782961839000,-500.0,0.00030135,2]
[426857289,1782961840000,-2000.0,0.00030136,2]
[426857286,1782961840000,-2000.0,0.00030136,2]
[426857293,1782961840000,-2000.0,0.00030136,2]
[426857291,1782961840000,-2000.0,0.00030136,2]
[426857292,1782961840000,-2000.0,0.00030136,2]
[426857294,1782961840000,-2000.0,0.00030136,2]
[426857290,1782961840000,-2000.0,0.00030136,2]
[426857308,1782961840000,-2000.0,0.00030136,2]
[426857295,1782961840000,-2000.0,0.00030136,2]
[426857309,1782961840000,-2000.0,0.00030136,2]
[426857297,1782961840000,-2000.0,0.00030136,2]
[426857307,1782961840000,-2000.0,0.00030136,2]
[426857305,1782961840000,-2000.0,0.00030136,2]
[426857296,1782961840000,-2000.0,0.00030136,2]
[426857287,1782961840000,-2000.0,0.00030136,2]
[426857303,1782961840000,-2000.0,0.00030136,2]
[426857288,1782961840000,-2000.0,0.00030136,2]
[426857285,1782961840000,-2000.0,0.00030136,2]
[426857272,1782961840000,-300.0,0.00030136,2]
[426857276,1782961840000,-300.0,0.00030136,2]
[426857304,1782961840000,-2000.0,0.00030136,2]
[426857269,1782961840000,-300.0,0.00030136,2]
[426857271,1782961840000,-300.0,0.00030136,2]
[426857273,1782961840000,-300.0,0.00030136,2]
[426857268,1782961840000,-2000.0,0.00030136,30]
[426857266,1782961840000,-310.01622763,0.00030136,2]
[426857270,1782961840000,-300.0,0.00030136,2]
[426857267,1782961840000,-300.0,0.00030136,2]
[426857275,1782961840000,-300.0,0.00030136,2]
[426857274,1782961840000,-300.0,0.00030136,2]
[426857278,1782961840000,-300.0,0.00030136,2]
[426857282,1782961840000,-189.45375158,0.00030136,2]
[426857284,1782961840000,-2000.0,0.00030136,2]
[426857281,1782961840000,-300.0,0.00030136,2]
[426857277,1782961840000,-300.0,0.00030136,2]
[426857279,1782961840000,-300.0,0.00030136,2]
[426857280,1782961840000,-300.0,0.00030136,2]
[426857283,1782961840000,-2000.0,0.00030136,2]
[426857299,1782961840000,-2000.0,0.00030136,2]
[426857324,1782961840000,-2000.0,0.00030136,2]
[426857301,1782961840000,-2000.0,0.00030136,2]
[426857325,1782961840000,-2000.0,0.00030136,2]
[426857329,1782961840000,-2000.0,0.00030136,2]
[426857327,1782961840000,-2000.0,0.00030136,2]
[426857331,1782961840000,-2000.0,0.00030136,2]
[426857334,1782961840000,-2000.0,0.00030136,2]
[426857335,1782961840000,-2000.0,0.00030136,2]
[426857340,1782961840000,-2000.0,0.00030136,2]
[426857333,1782961840000,-2000.0,0.00030136,2]
[426857345,1782961840000,-2000.0,0.00030136,2]
[426857337,1782961840000,-2000.0,0.00030136,2]
[426857338,1782961840000,-2000.0,0.00030136,2]
[426857343,1782961840000,-2000.0,0.00030136,2]
[426857341,1782961840000,-2000.0,0.00030136,2]
[426857342,1782961840000,-2000.0,0.00030136,2]
[426857344,1782961840000,-2000.0,0.00030136,2]
[426857346,1782961840000,-912.82907884,0.00030136,2]
[426857336,1782961840000,-2000.0,0.00030136,2]
[426857326,1782961840000,-2000.0,0.00030136,2]
[426857339,1782961840000,-2000.0,0.00030136,2]
[426857328,1782961840000,-2000.0,0.00030136,2]
[426857330,1782961840000,-2000.0,0.00030136,2]
[426857306,1782961840000,-2000.0,0.00030136,2]
[426857310,1782961840000,-2000.0,0.00030136,2]
[426857313,1782961840000,-2000.0,0.00030136,2]
[426857312,1782961840000,-2000.0,0.00030136,2]
[426857317,1782961840000,-2000.0,0.00030136,2]
[426857319,1782961840000,-2000.0,0.00030136,2]
[426857316,1782961840000,-2000.0,0.00030136,2]
[426857302,1782961840000,-2000.0,0.00030136,2]
[426857315,1782961840000,-2000.0,0.00030136,2]
[426857311,1782961840000,-2000.0,0.00030136,2]
[426857314,1782961840000,-2000.0,0.00030136,2]
[426857318,1782961840000,-2000.0,0.00030136,2]
[426857320,1782961840000,-2000.0,0.00030136,2]
[426857322,1782961840000,-2000.0,0.00030136,2]
[426857321,1782961840000,-2000.0,0.00030136,2]
[426857323,1782961840000,-2000.0,0.00030136,2]
[426857332,1782961840000,-2000.0,0.00030136,2]
[426857349,1782961841000,-2233.59952,0.0003011,2]
[426857347,1782961841000,-10033.37,0.0002999,10]
[426857348,1782961841000,-2710.0,0.0003011,2]
[426857352,1782961843000,-463.9566741,0.0003011,2]
[426857353,1782961843000,-29.92199139,0.0003011,2]
[426857355,1782961843000,-1848.41845386,0.00030136,2]
[426857354,1782961843000,-1087.17092116,0.00030136,2]
[426857351,1782961843000,-1500.0,0.00027397,2]
[426857357,1782961868000,464737.3874,0.00028504,120]
[426857358,1782962005000,29498.7574,0.00028504,120]
[426857359,1782962025000,152.82,0.0002901,120]
[426857361,1782962197000,190.78719787,0.00010137,2]
[426857362,1782962257000,190.78719787,0.00010137,30]
[426857365,1782962358000,3000.0,0.0002999,120]
[426857367,1782962358000,3000.0,0.0002999,120]
[426857366,1782962358000,3000.0,0.0002999,120]
[426857369,1782962358000,3000.0,0.0002999,120]
[426857370,1782962358000,3000.0,0.0002999,120]
[426857368,1782962358000,3000.0,0.0002999,120]
[426857372,1782962359000,1424.3379112,0.0002999,120]
[426857371,1782962359000,3000.0,0.0002999,120]
[426857374,1782962402000,156889.3123,0.000299,120]
[426857375,1782962463000,113453.3973,0.000299,120]
[426857376,1782962478000,537.01969344,0.00030035,120]
[426857377,1782962500000,500.0,0.00030136,120]
[426857379,1782962522000,162.55,0.00029742,120]
[426857378,1782962522000,162.55,0.00026438,120]
[426857380,1782962589000,500.0,0.00030136,120]
[426857383,1782962667000,503.63713004,0.00030136,120]
[426857384,1782962717000,500.0,0.00030136,120]
[426857385,1782962740000,649.67,0.00030136,120]
[426857386,1782962797000,505.11460608,0.00030136,120]
[426857387,1782962857000,500.0,0.00030136,120]
[426857388,1782962893000,500.0,0.00030136,120]
[426857389,1782962940000,2000.0,0.00030135,120]
[426857395,1782963031000,-902.43,0.000196,2]
[426857402,1782963031000,-500.0,0.0002156,2]
[426857399,1782963031000,-250.0,0.00021222,2]
[426857396,1782963031000,-167.60824397,0.00019722,2]
[426857401,1782963031000,-250.0,0.0002156,2]
[426857398,1782963031000,-270.85,0.00020613,2]
[426857397,1782963031000,-250.0,0.00019845,2]
[426857403,1782963031000,-731.514074,0.00021587,2]
[426857404,1782963031000,-200.94342227,0.00021696,2]
[426857405,1782963031000,-195.23583532,0.00021918,2]
[426857407,1782963031000,-3457.95,0.00022696,2]
[426857406,1782963031000,-969.32457411,0.00022696,2]
[426857408,1782963031000,-346.07068725,0.00022696,2]
[426857400,1782963031000,-194.0479392,0.0002156,2]
[426857464,1782963038000,-166.45,0.00025879,2]
[426857458,1782963038000,-152.09168621,0.00024967,2]
[426857457,1782963038000,-444.665,0.00024365,18]
[426857459,1782963038000,-214.0,0.00025,2]
[426857465,1782963038000,-150.0,0.00025929,2]
[426857460,1782963038000,-1811.58957209,0.00025447,2]
[426857462,1782963038000,-200.0,0.00025824,2]
[426857461,1782963038000,-155.51,0.00025824,2]
[426857463,1782963038000,-1188.23,0.00025826,2]
[426857474,1782963038000,-5000.0,0.00026393,2]
[426857478,1782963038000,-152.09168621,0.00026887,2]
[426857470,1782963038000,-214.0,0.00026,2]
[426857479,1782963038000,-216.66718849,0.00026999,2]
[426857472,1782963038000,-252.68,0.00026344,2]
[426857482,1782963038000,-214.0,0.00027,2]
[426857467,1782963038000,-13238.4,0.00025996,2]
[426857483,1782963038000,-1303.7253,0.00027037,2]
[426857486,1782963038000,-410.105842,0.00027099,2]
[426857456,1782963038000,-985.98,0.00024174,2]
[426857476,1782963038000,-251.5070712,0.00026813,2]
[426857466,1782963038000,-614.4382888,0.00025995,2]
[426857454,1782963038000,-214.0,0.00024,2]
[426857437,1782963038000,-1167.5,0.00023027,13]
[426857453,1782963038000,-415.5174,0.000239,2]
[426857475,1782963038000,-3245.9884832,0.00026447,2]
[426857426,1782963038000,-904.1372,0.00022696,2]
[426857425,1782963038000,-2980.67,0.00022696,2]
[426857428,1782963038000,-3951.63625896,0.00022696,2]
[426857431,1782963038000,-299.99,0.00022696,7]
[426857430,1782963038000,-1636.46,0.00022696,2]
[426857427,1782963038000,-325.85227184,0.00022696,2]
[426857429,1782963038000,-2242.74518208,0.00022696,2]
[426857433,1782963038000,-207.86,0.00022696,2]
[426857455,1782963038000,-2844.98,0.00024174,2]
[426857432,1782963038000,-354.66,0.00022696,2]
[426857434,1782963038000,-9999.99,0.00022696,2]
[426857436,1782963038000,-1934.94766176,0.00023027,13]
[426857438,1782963038000,-953.38316764,0.00023027,13]
[426857444,1782963038000,-999.99,0.00023027,2]
[426857442,1782963038000,-1201.08,0.00023027,2]
[426857446,1782963038000,-499.99,0.00023027,2]
[426857448,1782963038000,-24112.79,0.00023027,2]
[426857450,1782963038000,-9999.99,0.00023027,2]
[426857452,1782963038000,-9999.99,0.00023027,2]
[426857435,1782963038000,-1574.0,0.00023026,2]
[426857488,1782963038000,-503.0,0.00027137,2]
[426857440,1782963038000,-150.99,0.00023027,2]
[426857505,1782963038000,-634.95272809,0.00027397,2]
[426857523,1782963038000,-4079.97339442,0.00028212,2]
[426857519,1782963038000,-150.0,0.00027819,2]
[426857520,1782963038000,-300.0,0.00027953,2]
[426857526,1782963038000,-2000.0,0.00028237,3]
[426857525,1782963038000,-151.0,0.00028236,7]
[426857524,1782963038000,-216.66718849,0.00028235,2]
[426857542,1782963038000,-500.0,0.00028732,2]
[426857521,1782963038000,-214.0,0.00028,2]
[426857531,1782963038000,-182.72727272,0.0002842,2]
[426857533,1782963038000,-216.66718849,0.0002842,2]
[426857538,1782963038000,-179.79,0.0002863,30]
[426857532,1782963038000,-278.08714313,0.0002842,2]
[426857541,1782963038000,-385.2619405,0.0002869,2]
[426857534,1782963038000,-3686.63,0.00028571,2]
[426857535,1782963038000,-502.4,0.0002863,2]
[426857537,1782963038000,-178.24,0.0002863,30]
[426857539,1782963038000,-815.50846408,0.00028658,2]
[426857536,1782963038000,-182.12,0.0002863,30]
[426857543,1782963038000,-4079.97339439,0.00028733,2]
[426857544,1782963038000,-9409.68323695,0.00028755,2]
[426857504,1782963038000,-476.21454607,0.00027397,2]
[426857522,1782963038000,-410.105841,0.00028002,7]
[426857527,1782963038000,-67123.62363132,0.00028239,2]
[426857540,1782963038000,-500.0,0.0002869,2]
[426857518,1782963038000,-500.0,0.00027674,2]
[426857529,1782963038000,-152.38194867,0.0002842,2]
[426857506,1782963038000,-158.73818202,0.00027397,2]
[426857503,1782963038000,-5806.35,0.00027397,10]
[426857501,1782963038000,-6967.62,0.00027397,10]
[426857490,1782963038000,-503.0,0.00027137,2]
[426857499,1782963038000,-8361.14,0.00027397,10]
[426857497,1782963038000,-1500.0,0.00027397,2]
[426857494,1782963038000,-150.0,0.00027397,2]
[426857507,1782963038000,-317.47636405,0.00027397,2]
[426857508,1782963038000,-1000.0,0.000274,2]
[426857492,1782963038000,-313.62,0.0002737,2]
[426857514,1782963038000,-500.0,0.000274,2]
[426857515,1782963038000,-500.0,0.000275,7]
[426857516,1782963038000,-17801.79454281,0.00027541,2]
[426857510,1782963038000,-1000.0,0.000274,2]
[426857509,1782963038000,-1000.0,0.000274,2]
[426857517,1782963038000,-150.0,0.00027608,2]
[426857511,1782963038000,-1000.0,0.000274,2]
[426857530,1782963038000,-568.14622597,0.0002842,2]
[426857513,1782963038000,-1891.08,0.000274,2]
[426857528,1782963038000,-503.0,0.00028312,3]
[426857512,1782963038000,-1000.0,0.000274,2]
[426857589,1782963039000,-410.105841,0.00029809,7]
[426857568,1782963039000,-500.0,0.00029136,7]
[426857590,1782963039000,-1012.0265,0.0002983,2]
[426857587,1782963039000,-1010.86,0.000298,5]
[426857586,1782963039000,-2007.0,0.000298,2]
[426857581,1782963039000,-1737.98,0.00029624,7]
[426857575,1782963039000,-178.24,0.00029383,2]
[426857582,1782963039000,-179.79,0.00029634,2]
[426857578,1782963039000,-1679.875,0.00029534,23]
[426857580,1782963039000,-1512.62195,0.000296,2]
[426857585,1782963039000,-4079.97339439,0.00029775,2]
[426857579,1782963039000,-157.842,0.00029534,23]
[426857588,1782963039000,-3988.71993781,0.000298,2]
[426857595,1782963039000,-198.19692038,0.00029836,2]
[426857583,1782963039000,-568.14622597,0.00029673,2]
[426857591,1782963039000,-500.0,0.00029836,2]
[426857600,1782963039000,-500.0,0.00029836,2]
[426857602,1782963039000,-336.1656166,0.00029836,2]
[426857603,1782963039000,-500.0,0.00029836,2]
[426857601,1782963039000,-500.0,0.00029836,2]
[426857593,1782963039000,-500.0,0.00029836,2]
[426857599,1782963039000,-500.0,0.00029836,2]
[426857598,1782963039000,-500.0,0.00029836,2]
[426857596,1782963039000,-500.0,0.00029836,2]
[426857597,1782963039000,-500.0,0.00029836,2]
[426857570,1782963039000,-188.68074039,0.0002921,4]
[426857584,1782963039000,-178.24,0.0002976,30]
[426857571,1782963039000,-339.223424,0.00029232,2]
[426857549,1782963039000,-166.57,0.00028851,2]
[426857567,1782963039000,-500.0,0.00029136,7]
[426857545,1782963039000,-152.09168621,0.00028808,2]
[426857546,1782963039000,-568.14622597,0.00028838,2]
[426857547,1782963039000,-200.36,0.00028842,2]
[426857548,1782963039000,-494.0,0.00028842,10]
[426857552,1782963039000,-2000.0,0.00028999,14]
[426857604,1782963039000,-500.0,0.00029836,2]
[426857550,1782963039000,-410.105841,0.00028906,7]
[426857551,1782963039000,-185.0,0.00028971,2]
[426857555,1782963039000,-500.0,0.00029,2]
[426857553,1782963039000,-150.0,0.00029,7]
[426857559,1782963039000,-178.24,0.00029006,7]
[426857558,1782963039000,-160.93,0.00029,2]
[426857556,1782963039000,-500.0,0.00029,2]
[426857560,1782963039000,-2000.0,0.00029024,21]
[426857557,1782963039000,-180.86,0.00029,2]
[426857554,1782963039000,-224.75661809,0.00029,2]
[426857563,1782963039000,-697.07,0.000291,30]
[426857561,1782963039000,-151.0,0.00029031,5]
[426857562,1782963039000,-216.66718849,0.00029088,2]
[426857564,1782963039000,-151.0,0.00029124,5]
[426857576,1782963039000,-503.0,0.00029486,4]
[426857565,1782963039000,-303.53625114,0.0002913,7]
[426857566,1782963039000,-179.79,0.00029132,7]
[426857577,1782963039000,-152.0,0.00029492,5]
[426857574,1782963039000,-2000.0,0.00029339,4]
[426857573,1782963039000,-568.14622597,0.00029255,2]
[426857572,1782963039000,-4079.97339439,0.00029254,2]
[426857569,1782963039000,-504.39,0.00029136,7]
[426857605,1782963039000,-268.86621066,0.00029836,2]
[426857594,1782963039000,-500.0,0.00029836,2]
[426857613,1782963039000,-500.0,0.00029836,2]
[426857638,1782963039000,-227.13251241,0.00029983,7]
[426857632,1782963039000,-13652.6348451,0.000299,2]
[426857639,1782963039000,-3389.50400971,0.0002999,2]
[426857644,1782963039000,-151.0,0.00029997,7]
[426857654,1782963039000,-2000.0,0.00029999,7]
[426857643,1782963039000,-503.49251407,0.0002999,7]
[426857645,1782963039000,-151.0,0.00029997,7]
[426857650,1782963039000,-3000.0,0.00029999,30]
[426857647,1782963039000,-151.0,0.00029997,7]
[426857646,1782963039000,-151.0,0.00029997,7]
[426857648,1782963039000,-151.0,0.00029997,7]
[426857652,1782963039000,-500.0,0.00029999,2]
[426857653,1782963039000,-500.0,0.00029999,2]
[426857642,1782963039000,-500.0,0.0002999,7]
[426857649,1782963039000,-151.0,0.00029997,7]
[426857655,1782963039000,-2000.0,0.00029999,5]
[426857658,1782963039000,-608.87,0.00029999,3]
[426857656,1782963039000,-2000.0,0.00029999,11]
[426857666,1782963039000,-12499.99,0.0003,2]
[426857662,1782963039000,-193.01,0.0003,2]
[426857660,1782963039000,-300.0,0.00029999,10]
[426857664,1782963039000,-2191.14,0.0003,2]
[426857659,1782963039000,-869.82,0.00029999,3]
[426857665,1782963039000,-2499.98,0.0003,2]
[426857661,1782963039000,-2499.99,0.0003,2]
[426857663,1782963039000,-12499.97,0.0003,2]
[426857667,1782963039000,-12499.98,0.0003,2]
[426857607,1782963039000,-500.0,0.00029836,2]
[426857657,1782963039000,-260.94,0.00029999,3]
[426857641,1782963039000,-500.0,0.0002999,7]
[426857651,1782963039000,-500.0,0.00029999,2]
[426857637,1782963039000,-1012.0265,0.0002993,2]
[426857633,1782963039000,-13700.76125915,0.000299,2]
[426857610,1782963039000,-306.71080965,0.00029836,2]
[426857612,1782963039000,-500.0,0.00029836,2]
[426857614,1782963039000,-500.0,0.00029836,2]
[426857608,1782963039000,-500.0,0.00029836,2]
[426857611,1782963039000,-168.60940226,0.00029836,2]
[426857615,1782963039000,-500.0,0.00029836,2]
[426857617,1782963039000,-500.0,0.00029836,2]
[426857616,1782963039000,-500.0,0.00029836,2]
[426857619,1782963039000,-500.0,0.00029836,2]
[426857629,1782963039000,-13700.76125915,0.000299,2]
[426857630,1782963039000,-13700.76125915,0.000299,2]
[426857622,1782963039000,-458.16437736,0.00029836,2]
[426857626,1782963039000,-13700.76125933,0.000299,2]
[426857609,1782963039000,-500.0,0.00029836,2]
[426857636,1782963039000,-13700.76125915,0.00029908,2]
[426857618,1782963039000,-626.83795367,0.00029836,2]
[426857640,1782963039000,-500.0,0.0002999,7]
[426857635,1782963039000,-1589.0,0.000299,30]
[426857634,1782963039000,-13700.76125915,0.000299,2]
[426857631,1782963039000,-48.12641405,0.000299,2]
[426857625,1782963039000,-92077.94753974,0.000299,2]
[426857627,1782963039000,-13700.76125915,0.000299,2]
[426857621,1782963039000,-500.0,0.00029836,2]
[426857620,1782963039000,-500.0,0.00029836,2]
[426857624,1782963039000,-200.0,0.00029894,2]
[426857623,1782963039000,-200.0,0.00029871,2]
[426857628,1782963039000,-13700.76125915,0.000299,2]
[426857710,1782963040000,-151.0,0.0003,7]
[426857707,1782963040000,-12499.99,0.0003,2]
[426857716,1782963040000,-10000.0,0.0003,2]
[426857717,1782963040000,-156.539999,0.0003,11]
[426857708,1782963040000,-151.0,0.0003,7]
[426857696,1782963040000,-15000.0,0.0003,2]
[426857705,1782963040000,-14999.99,0.0003,2]
[426857700,1782963040000,-24999.99,0.0003,2]
[426857701,1782963040000,-177.5732311,0.0003,2]
[426857699,1782963040000,-12332.33,0.0003,2]
[426857715,1782963040000,-200.0,0.0003,11]
[426857697,1782963040000,-12499.99,0.0003,2]
[426857706,1782963040000,-151.0,0.0003,7]
[426857709,1782963040000,-15114.58,0.0003,2]
[426857718,1782963040000,-151.0,0.0003,7]
[426857712,1782963040000,-200.0,0.0003,11]
[426857713,1782963040000,-200.0,0.0003,11]
[426857714,1782963040000,-200.0,0.0003,11]
[426857719,1782963040000,-151.0,0.0003,7]
[426857730,1782963040000,-151.0,0.0003,7]
[426857720,1782963040000,-14999.98,0.0003,2]
[426857722,1782963040000,-2499.99,0.0003,2]
[426857721,1782963040000,-24999.98,0.0003,2]
[426857723,1782963040000,-151.0,0.0003,7]
[426857725,1782963040000,-151.0,0.0003,7]
[426857724,1782963040000,-151.0,0.0003,7]
[426857728,1782963040000,-151.0,0.0003,7]
[426857726,1782963040000,-151.0,0.0003,7]
[426857711,1782963040000,-7661.16,0.0003,2]
[426857695,1782963040000,-9999.98,0.0003,2]
[426857668,1782963040000,-725.83,0.0003,2]
[426857693,1782963040000,-363.23,0.0003,2]
[426857732,1782963040000,-151.0,0.0003,7]
[426857669,1782963040000,-2526.62,0.0003,2]
[426857675,1782963040000,-12499.99,0.0003,2]
[426857672,1782963040000,-14999.99,0.0003,2]
[426857671,1782963040000,-12499.99,0.0003,2]
[426857673,1782963040000,-14999.99,0.0003,2]
[426857674,1782963040000,-12499.98,0.0003,2]
[426857670,1782963040000,-14999.99,0.0003,2]
[426857677,1782963040000,-24999.99,0.0003,2]
[426857676,1782963040000,-215.86,0.0003,2]
[426857681,1782963040000,-24999.99,0.0003,2]
[426857678,1782963040000,-7687.72,0.0003,2]
[426857679,1782963040000,-12500.0,0.0003,2]
[426857694,1782963040000,-800.0,0.0003,2]
[426857690,1782963040000,-12500.0,0.0003,2]
[426857682,1782963040000,-12499.98,0.0003,2]
[426857685,1782963040000,-14999.99,0.0003,2]
[426857680,1782963040000,-14999.98,0.0003,2]
[426857684,1782963040000,-9999.99,0.0003,2]
[426857683,1782963040000,-2499.99,0.0003,2]
[426857687,1782963040000,-25000.0,0.0003,2]
[426857688,1782963040000,-12500.0,0.0003,2]
[426857689,1782963040000,-10000.0,0.0003,2]
[426857703,1782963040000,-2499.98,0.0003,2]
[426857692,1782963040000,-10000.0,0.0003,2]
[426857704,1782963040000,-2500.0,0.0003,2]
[426857702,1782963040000,-800.0,0.0003,2]
[426857691,1782963040000,-1042.99,0.0003,2]
[426857686,1782963040000,-12499.98,0.0003,2]
[426857744,1782963040000,-239.892216,0.0003,7]
[426857698,1782963040000,-9999.98,0.0003,2]
[426857738,1782963040000,-151.0,0.0003,7]
[426857792,1782963040000,-500.0,0.0003,2]
[426857799,1782963040000,-500.0,0.0003,2]
[426857804,1782963040000,-500.0,0.0003,2]
[426857808,1782963040000,-500.0,0.0003,2]
[426857806,1782963040000,-500.0,0.0003,2]
[426857810,1782963040000,-500.0,0.0003,2]
[426857813,1782963040000,-500.0,0.0003,2]
[426857823,1782963040000,-500.0,0.0003,2]
[426857815,1782963040000,-500.0,0.0003,2]
[426857811,1782963040000,-500.0,0.0003,2]
[426857819,1782963040000,-500.0,0.0003,2]
[426857821,1782963040000,-500.0,0.0003,2]
[426857825,1782963040000,-500.0,0.0003,2]
[426857801,1782963040000,-500.0,0.0003,2]
[426857827,1782963040000,-500.0,0.0003,2]
[426857832,1782963040000,-500.0,0.0003,2]
[426857830,1782963040000,-500.0,0.0003,2]
[426857840,1782963040000,-500.0,0.0003,2]
[426857834,1782963040000,-500.0,0.0003,2]
[426857836,1782963040000,-500.0,0.0003,2]
[426857838,1782963040000,-500.0,0.0003,2]
[426857851,1782963040000,-500.0,0.0003,2]
[426857843,1782963040000,-500.0,0.0003,2]
[426857853,1782963040000,-500.0,0.0003,2]
[426857845,1782963040000,-500.0,0.0003,2]
[426857847,1782963040000,-500.0,0.0003,2]
[426857849,1782963040000,-500.0,0.0003,2]
[426857736,1782963040000,-151.0,0.0003,7]
[426857829,1782963040000,-500.0,0.0003,2]
[426857795,1782963040000,-500.0,0.0003,2]
[426857817,1782963040000,-500.0,0.0003,2]
[426857782,1782963040000,-200.0,0.0003,2]
[426857734,1782963040000,-151.0,0.0003,7]
[426857742,1782963040000,-239.892216,0.0003,7]
[426857802,1782963040000,-500.0,0.0003,2]
[426857747,1782963040000,-239.892216,0.0003,7]
[426857751,1782963040000,-239.892216,0.0003,7]
[426857749,1782963040000,-239.892216,0.0003,7]
[426857753,1782963040000,-239.892216,0.0003,7]
[426857755,1782963040000,-239.892216,0.0003,7]
[426857757,1782963040000,-239.892216,0.0003,7]
[426857759,1782963040000,-239.892216,0.0003,7]
[426857763,1782963040000,-239.892216,0.0003,7]
[426857766,1782963040000,-239.892216,0.0003,7]
[426857770,1782963040000,-12499.99,0.0003,2]
[426857778,1782963040000,-151.0,0.0003,7]
[426857761,1782963040000,-9999.98,0.0003,2]
[426857741,1782963040000,-182.551542,0.0003,7]
[426857768,1782963040000,-239.892216,0.0003,7]
[426857780,1782963040000,-151.0,0.0003,7]
[426857793,1782963040000,-500.0,0.0003,2]
[426857790,1782963040000,-500.0,0.0003,2]
[426857855,1782963040000,-500.0,0.0003,2]
[426857788,1782963040000,-500.0,0.0003,2]
[426857786,1782963040000,-500.0,0.0003,2]
[426857797,1782963040000,-500.0,0.0003,2]
[426857781,1782963040000,-150.0,0.0003,2]
[426857783,1782963040000,-200.0,0.0003,11]
[426857774,1782963040000,-473.02,0.0003,3]
[426857772,1782963040000,-200.0,0.0003,2]
[426857776,1782963040000,-151.0,0.0003,7]
[426857784,1782963040000,-200.0,0.0003,11]
[426857884,1782963041000,-500.0,0.0003,2]
[426857881,1782963041000,-500.0,0.0003,2]
[426857879,1782963041000,-500.0,0.0003,2]
[426857882,1782963041000,-500.0,0.0003,2]
[426857888,1782963041000,-500.0,0.0003,2]
[426857885,1782963041000,-500.0,0.0003,2]
[426857890,1782963041000,-500.0,0.0003,2]
[426857900,1782963041000,-500.0,0.0003,2]